Workbook

Sheet 相関表
C2: Sheet1 | D2: Sheet2 | E2: Sheet 3 | F2: Sheet 4 | G2: Sheet5
B3: Sheet1
B4: Sheet2
B5: Sheet 3
B6: Sheet 4
B7: Sheet5

Sheet Sheet1
B1: Sheet2 | C1: Shee 3 | D1: Sheet 4
A2: =Sheet5!A2 -> 合計 | B2: =SUM(Sheet2!D:D) -> 3490798 | C2: =SUM('Sheet 3'!F:F) -> 3490798 | D2: =INDEX('Sheet 4'!A1:L7,MATCH("合計",'Sheet 4'!A:A,0),MATCH("合計",'Sheet 4'!1:1,0)) -> 3490798

Sheet Sheet2
A1: id | B1: =Sheet5!B1 -> 名称 | C1: =Sheet5!C1 -> 単価 | D1: =Sheet5!D1 -> 金額
A2: id01 | B2: 名前01 | C2: 1981 | D2: =SUMIFS('Sheet 3'!F:F,'Sheet 3'!B:B,Sheet2!A2) -> 219891
A3: id02 | B3: 名前02 | C3: 315 | D3: =SUMIFS('Sheet 3'!F:F,'Sheet 3'!B:B,Sheet2!A3) -> 63315
A4: id03 | B4: 名前03 | C4: 1780 | D4: =SUMIFS('Sheet 3'!F:F,'Sheet 3'!B:B,Sheet2!A4) -> 539340
A5: id04 | B5: 名前04 | C5: 1937 | D5: =SUMIFS('Sheet 3'!F:F,'Sheet 3'!B:B,Sheet2!A5) -> 524927
A6: id05 | B6: 名前05 | C6: 1436 | D6: =SUMIFS('Sheet 3'!F:F,'Sheet 3'!B:B,Sheet2!A6) -> 410696
A7: id06 | B7: 名前06 | C7: 1884 | D7: =SUMIFS('Sheet 3'!F:F,'Sheet 3'!B:B,Sheet2!A7) -> 467232
A8: id07 | B8: 名前07 | C8: 505 | D8: =SUMIFS('Sheet 3'!F:F,'Sheet 3'!B:B,Sheet2!A8) -> 142410
A9: id08 | B9: 名前08 | C9: 437 | D9: =SUMIFS('Sheet 3'!F:F,'Sheet 3'!B:B,Sheet2!A9) -> 149891
A10: id09 | B10: 名前09 | C10: 1921 | D10: =SUMIFS('Sheet 3'!F:F,'Sheet 3'!B:B,Sheet2!A10) -> 722296
A11: id10 | B11: 名前10 | C11: 1200 | D11: =SUMIFS('Sheet 3'!F:F,'Sheet 3'!B:B,Sheet2!A11) -> 250800

Sheet Sheet 3
A1: 日付 | B1: id | C1: 名称 | D1: 単価 | E1: 数量 | F1: 金額
A2: 2021-02-01 | B2: id01 | C2: =VLOOKUP($B2,Sheet2!$A:$C,2,0) -> 名前01 | D2: =VLOOKUP($B2,Sheet2!$A:$C,3,0) -> 1981 | E2: 41 | F2: =D2*E2 -> 81221
A3: 2021-02-01 | B3: id02 | C3: =VLOOKUP($B3,Sheet2!$A:$C,2,0) -> 名前02 | D3: =VLOOKUP($B3,Sheet2!$A:$C,3,0) -> 315 | E3: 49 | F3: =D3*E3 -> 15435
A4: 2021-02-01 | B4: id03 | C4: =VLOOKUP($B4,Sheet2!$A:$C,2,0) -> 名前03 | D4: =VLOOKUP($B4,Sheet2!$A:$C,3,0) -> 1780 | E4: 11 | F4: 19580
A5: 2021-02-01 | B5: id04 | C5: =VLOOKUP($B5,Sheet2!$A:$C,2,0) -> 名前04 | D5: =VLOOKUP($B5,Sheet2!$A:$C,3,0) -> 1937 | E5: 15 | F5: 29055
A6: 2021-02-01 | B6: id05 | C6: =VLOOKUP($B6,Sheet2!$A:$C,2,0) -> 名前05 | D6: =VLOOKUP($B6,Sheet2!$A:$C,3,0) -> 1436 | E6: 58 | F6: 83288
A7: 2021-02-01 | B7: id06 | C7: =VLOOKUP($B7,Sheet2!$A:$C,2,0) -> 名前06 | D7: =VLOOKUP($B7,Sheet2!$A:$C,3,0) -> 1884 | E7: 60 | F7: 113040
A8: 2021-02-01 | B8: id07 | C8: =VLOOKUP($B8,Sheet2!$A:$C,2,0) -> 名前07 | D8: =VLOOKUP($B8,Sheet2!$A:$C,3,0) -> 505 | E8: 63 | F8: 31815
A9: 2021-02-01 | B9: id08 | C9: =VLOOKUP($B9,Sheet2!$A:$C,2,0) -> 名前08 | D9: =VLOOKUP($B9,Sheet2!$A:$C,3,0) -> 437 | E9: 95 | F9: 41515
A10: 2021-02-01 | B10: id09 | C10: =VLOOKUP($B10,Sheet2!$A:$C,2,0) -> 名前09 | D10: =VLOOKUP($B10,Sheet2!$A:$C,3,0) -> 1921 | E10: 84 | F10: 161364
A11: 2021-02-01 | B11: id10 | C11: =VLOOKUP($B11,Sheet2!$A:$C,2,0) -> 名前10 | D11: =VLOOKUP($B11,Sheet2!$A:$C,3,0) -> 1200 | E11: 76 | F11: 91200
A12: 2021-02-02 | B12: id01 | C12: =VLOOKUP($B12,Sheet2!$A:$C,2,0) -> 名前01 | D12: =VLOOKUP($B12,Sheet2!$A:$C,3,0) -> 1981 | E12: 14 | F12: =D12*E12 -> 27734
A13: 2021-02-02 | B13: id02 | C13: =VLOOKUP($B13,Sheet2!$A:$C,2,0) -> 名前02 | D13: =VLOOKUP($B13,Sheet2!$A:$C,3,0) -> 315 | E13: 19 | F13: =D13*E13 -> 5985
A14: 2021-02-02 | B14: id03 | C14: =VLOOKUP($B14,Sheet2!$A:$C,2,0) -> 名前03 | D14: =VLOOKUP($B14,Sheet2!$A:$C,3,0) -> 1780 | E14: 39 | F14: 69420
A15: 2021-02-02 | B15: id04 | C15: =VLOOKUP($B15,Sheet2!$A:$C,2,0) -> 名前04 | D15: =VLOOKUP($B15,Sheet2!$A:$C,3,0) -> 1937 | E15: 85 | F15: 164645
A16: 2021-02-02 | B16: id05 | C16: =VLOOKUP($B16,Sheet2!$A:$C,2,0) -> 名前05 | D16: =VLOOKUP($B16,Sheet2!$A:$C,3,0) -> 1436 | E16: 83 | F16: 119188
A17: 2021-02-02 | B17: id06 | C17: =VLOOKUP($B17,Sheet2!$A:$C,2,0) -> 名前06 | D17: =VLOOKUP($B17,Sheet2!$A:$C,3,0) -> 1884 | E17: 70 | F17: 131880
A18: 2021-02-02 | B18: id07 | C18: =VLOOKUP($B18,Sheet2!$A:$C,2,0) -> 名前07 | D18: =VLOOKUP($B18,Sheet2!$A:$C,3,0) -> 505 | E18: 53 | F18: 26765
A19: 2021-02-02 | B19: id08 | C19: =VLOOKUP($B19,Sheet2!$A:$C,2,0) -> 名前08 | D19: =VLOOKUP($B19,Sheet2!$A:$C,3,0) -> 437 | E19: 47 | F19: 20539
A20: 2021-02-02 | B20: id09 | C20: =VLOOKUP($B20,Sheet2!$A:$C,2,0) -> 名前09 | D20: =VLOOKUP($B20,Sheet2!$A:$C,3,0) -> 1921 | E20: 95 | F20: 182495
A21: 2021-02-02 | B21: id10 | C21: =VLOOKUP($B21,Sheet2!$A:$C,2,0) -> 名前10 | D21: =VLOOKUP($B21,Sheet2!$A:$C,3,0) -> 1200 | E21: 80 | F21: 96000
A22: 2021-02-03 | B22: id01 | C22: =VLOOKUP($B22,Sheet2!$A:$C,2,0) -> 名前01 | D22: =VLOOKUP($B22,Sheet2!$A:$C,3,0) -> 1981 | E22: 5 | F22: =D22*E22 -> 9905
A23: 2021-02-03 | B23: id02 | C23: =VLOOKUP($B23,Sheet2!$A:$C,2,0) -> 名前02 | D23: =VLOOKUP($B23,Sheet2!$A:$C,3,0) -> 315 | E23: 12 | F23: =D23*E23 -> 3780
A24: 2021-02-03 | B24: id03 | C24: =VLOOKUP($B24,Sheet2!$A:$C,2,0) -> 名前03 | D24: =VLOOKUP($B24,Sheet2!$A:$C,3,0) -> 1780 | E24: 90 | F24: 160200
A25: 2021-02-03 | B25: id04 | C25: =VLOOKUP($B25,Sheet2!$A:$C,2,0) -> 名前04 | D25: =VLOOKUP($B25,Sheet2!$A:$C,3,0) -> 1937 | E25: 47 | F25: 91039
A26: 2021-02-03 | B26: id05 | C26: =VLOOKUP($B26,Sheet2!$A:$C,2,0) -> 名前05 | D26: =VLOOKUP($B26,Sheet2!$A:$C,3,0) -> 1436 | E26: 28 | F26: 40208
A27: 2021-02-03 | B27: id06 | C27: =VLOOKUP($B27,Sheet2!$A:$C,2,0) -> 名前06 | D27: =VLOOKUP($B27,Sheet2!$A:$C,3,0) -> 1884 | E27: 21 | F27: 39564
A28: 2021-02-03 | B28: id07 | C28: =VLOOKUP($B28,Sheet2!$A:$C,2,0) -> 名前07 | D28: =VLOOKUP($B28,Sheet2!$A:$C,3,0) -> 505 | E28: 95 | F28: 47975
A29: 2021-02-03 | B29: id08 | C29: =VLOOKUP($B29,Sheet2!$A:$C,2,0) -> 名前08 | D29: =VLOOKUP($B29,Sheet2!$A:$C,3,0) -> 437 | E29: 37 | F29: 16169
A30: 2021-02-03 | B30: id09 | C30: =VLOOKUP($B30,Sheet2!$A:$C,2,0) -> 名前09 | D30: =VLOOKUP($B30,Sheet2!$A:$C,3,0) -> 1921 | E30: 35 | F30: 67235
A31: 2021-02-03 | B31: id10 | C31: =VLOOKUP($B31,Sheet2!$A:$C,2,0) -> 名前10 | D31: =VLOOKUP($B31,Sheet2!$A:$C,3,0) -> 1200 | E31: 21 | F31: 25200
A32: 2021-02-04 | B32: id01 | C32: =VLOOKUP($B32,Sheet2!$A:$C,2,0) -> 名前01 | D32: =VLOOKUP($B32,Sheet2!$A:$C,3,0) -> 1981 | E32: 21 | F32: =D32*E32 -> 41601
A33: 2021-02-04 | B33: id02 | C33: =VLOOKUP($B33,Sheet2!$A:$C,2,0) -> 名前02 | D33: =VLOOKUP($B33,Sheet2!$A:$C,3,0) -> 315 | E33: 28 | F33: =D33*E33 -> 8820
A34: 2021-02-04 | B34: id03 | C34: =VLOOKUP($B34,Sheet2!$A:$C,2,0) -> 名前03 | D34: =VLOOKUP($B34,Sheet2!$A:$C,3,0) -> 1780 | E34: 73 | F34: 129940
A35: 2021-02-04 | B35: id04 | C35: =VLOOKUP($B35,Sheet2!$A:$C,2,0) -> 名前04 | D35: =VLOOKUP($B35,Sheet2!$A:$C,3,0) -> 1937 | E35: 34 | F35: 65858
A36: 2021-02-04 | B36: id05 | C36: =VLOOKUP($B36,Sheet2!$A:$C,2,0) -> 名前05 | D36: =VLOOKUP($B36,Sheet2!$A:$C,3,0) -> 1436 | E36: 30 | F36: 43080
A37: 2021-02-04 | B37: id06 | C37: =VLOOKUP($B37,Sheet2!$A:$C,2,0) -> 名前06 | D37: =VLOOKUP($B37,Sheet2!$A:$C,3,0) -> 1884 | E37: 82 | F37: 154488
A38: 2021-02-04 | B38: id07 | C38: =VLOOKUP($B38,Sheet2!$A:$C,2,0) -> 名前07 | D38: =VLOOKUP($B38,Sheet2!$A:$C,3,0) -> 505 | E38: 58 | F38: 29290
A39: 2021-02-04 | B39: id08 | C39: =VLOOKUP($B39,Sheet2!$A:$C,2,0) -> 名前08 | D39: =VLOOKUP($B39,Sheet2!$A:$C,3,0) -> 437 | E39: 86 | F39: 37582
A40: 2021-02-04 | B40: id09 | C40: =VLOOKUP($B40,Sheet2!$A:$C,2,0) -> 名前09 | D40: =VLOOKUP($B40,Sheet2!$A:$C,3,0) -> 1921 | E40: 64 | F40: 122944
A41: 2021-02-04 | B41: id10 | C41: =VLOOKUP($B41,Sheet2!$A:$C,2,0) -> 名前10 | D41: =VLOOKUP($B41,Sheet2!$A:$C,3,0) -> 1200 | E41: 25 | F41: 30000
A42: 2021-02-05 | B42: id01 | C42: =VLOOKUP($B42,Sheet2!$A:$C,2,0) -> 名前01 | D42: =VLOOKUP($B42,Sheet2!$A:$C,3,0) -> 1981 | E42: 30 | F42: =D42*E42 -> 59430
A43: 2021-02-05 | B43: id02 | C43: =VLOOKUP($B43,Sheet2!$A:$C,2,0) -> 名前02 | D43: =VLOOKUP($B43,Sheet2!$A:$C,3,0) -> 315 | E43: 93 | F43: =D43*E43 -> 29295
A44: 2021-02-05 | B44: id03 | C44: =VLOOKUP($B44,Sheet2!$A:$C,2,0) -> 名前03 | D44: =VLOOKUP($B44,Sheet2!$A:$C,3,0) -> 1780 | E44: 90 | F44: 160200
A45: 2021-02-05 | B45: id04 | C45: =VLOOKUP($B45,Sheet2!$A:$C,2,0) -> 名前04 | D45: =VLOOKUP($B45,Sheet2!$A:$C,3,0) -> 1937 | E45: 90 | F45: 174330
A46: 2021-02-05 | B46: id05 | C46: =VLOOKUP($B46,Sheet2!$A:$C,2,0) -> 名前05 | D46: =VLOOKUP($B46,Sheet2!$A:$C,3,0) -> 1436 | E46: 87 | F46: 124932
A47: 2021-02-05 | B47: id06 | C47: =VLOOKUP($B47,Sheet2!$A:$C,2,0) -> 名前06 | D47: =VLOOKUP($B47,Sheet2!$A:$C,3,0) -> 1884 | E47: 15 | F47: 28260
A48: 2021-02-05 | B48: id07 | C48: =VLOOKUP($B48,Sheet2!$A:$C,2,0) -> 名前07 | D48: =VLOOKUP($B48,Sheet2!$A:$C,3,0) -> 505 | E48: 13 | F48: 6565
A49: 2021-02-05 | B49: id08 | C49: =VLOOKUP($B49,Sheet2!$A:$C,2,0) -> 名前08 | D49: =VLOOKUP($B49,Sheet2!$A:$C,3,0) -> 437 | E49: 78 | F49: 34086
A50: 2021-02-05 | B50: id09 | C50: =VLOOKUP($B50,Sheet2!$A:$C,2,0) -> 名前09 | D50: =VLOOKUP($B50,Sheet2!$A:$C,3,0) -> 1921 | E50: 98 | F50: 188258
A51: 2021-02-05 | B51: id10 | C51: =VLOOKUP($B51,Sheet2!$A:$C,2,0) -> 名前10 | D51: =VLOOKUP($B51,Sheet2!$A:$C,3,0) -> 1200 | E51: 7 | F51: 8400

Sheet Sheet 4
B1: id01 | C1: id02 | D1: id03 | E1: id04 | F1: id05 | G1: id06 | H1: id07 | I1: id08 | J1: id09 | K1: id10 | L1: 合計
A2: 2021-02-01 | B2: =SUMIFS('Sheet 3'!$F:$F,'Sheet 3'!$B:$B,B$1,'Sheet 3'!$A:$A,$A2) -> 81221 | C2: =SUMIFS('Sheet 3'!$F:$F,'Sheet 3'!$B:$B,C$1,'Sheet 3'!$A:$A,$A2) -> 15435 | D2: =SUMIFS('Sheet 3'!$F:$F,'Sheet 3'!$B:$B,D$1,'Sheet 3'!$A:$A,$A2) -> 19580 | E2: =SUMIFS('Sheet 3'!$F:$F,'Sheet 3'!$B:$B,E$1,'Sheet 3'!$A:$A,$A2) -> 29055 | F2: =SUMIFS('Sheet 3'!$F:$F,'Sheet 3'!$B:$B,F$1,'Sheet 3'!$A:$A,$A2) -> 83288 | G2: =SUMIFS('Sheet 3'!$F:$F,'Sheet 3'!$B:$B,G$1,'Sheet 3'!$A:$A,$A2) -> 113040 | H2: =SUMIFS('Sheet 3'!$F:$F,'Sheet 3'!$B:$B,H$1,'Sheet 3'!$A:$A,$A2) -> 31815 | I2: =SUMIFS('Sheet 3'!$F:$F,'Sheet 3'!$B:$B,I$1,'Sheet 3'!$A:$A,$A2) -> 41515 | J2: =SUMIFS('Sheet 3'!$F:$F,'Sheet 3'!$B:$B,J$1,'Sheet 3'!$A:$A,$A2) -> 161364 | K2: =SUMIFS('Sheet 3'!$F:$F,'Sheet 3'!$B:$B,K$1,'Sheet 3'!$A:$A,$A2) -> 91200 | L2: =SUM(B2:K2) -> 667513
A3: 2021-02-02 | B3: =SUMIFS('Sheet 3'!$F:$F,'Sheet 3'!$B:$B,B$1,'Sheet 3'!$A:$A,$A3) -> 27734 | C3: =SUMIFS('Sheet 3'!$F:$F,'Sheet 3'!$B:$B,C$1,'Sheet 3'!$A:$A,$A3) -> 5985 | D3: =SUMIFS('Sheet 3'!$F:$F,'Sheet 3'!$B:$B,D$1,'Sheet 3'!$A:$A,$A3) -> 69420 | E3: =SUMIFS('Sheet 3'!$F:$F,'Sheet 3'!$B:$B,E$1,'Sheet 3'!$A:$A,$A3) -> 164645 | F3: =SUMIFS('Sheet 3'!$F:$F,'Sheet 3'!$B:$B,F$1,'Sheet 3'!$A:$A,$A3) -> 119188 | G3: =SUMIFS('Sheet 3'!$F:$F,'Sheet 3'!$B:$B,G$1,'Sheet 3'!$A:$A,$A3) -> 131880 | H3: =SUMIFS('Sheet 3'!$F:$F,'Sheet 3'!$B:$B,H$1,'Sheet 3'!$A:$A,$A3) -> 26765 | I3: =SUMIFS('Sheet 3'!$F:$F,'Sheet 3'!$B:$B,I$1,'Sheet 3'!$A:$A,$A3) -> 20539 | J3: =SUMIFS('Sheet 3'!$F:$F,'Sheet 3'!$B:$B,J$1,'Sheet 3'!$A:$A,$A3) -> 182495 | K3: =SUMIFS('Sheet 3'!$F:$F,'Sheet 3'!$B:$B,K$1,'Sheet 3'!$A:$A,$A3) -> 96000 | L3: 844651
A4: 2021-02-03 | B4: =SUMIFS('Sheet 3'!$F:$F,'Sheet 3'!$B:$B,B$1,'Sheet 3'!$A:$A,$A4) -> 9905 | C4: =SUMIFS('Sheet 3'!$F:$F,'Sheet 3'!$B:$B,C$1,'Sheet 3'!$A:$A,$A4) -> 3780 | D4: =SUMIFS('Sheet 3'!$F:$F,'Sheet 3'!$B:$B,D$1,'Sheet 3'!$A:$A,$A4) -> 160200 | E4: =SUMIFS('Sheet 3'!$F:$F,'Sheet 3'!$B:$B,E$1,'Sheet 3'!$A:$A,$A4) -> 91039 | F4: =SUMIFS('Sheet 3'!$F:$F,'Sheet 3'!$B:$B,F$1,'Sheet 3'!$A:$A,$A4) -> 40208 | G4: =SUMIFS('Sheet 3'!$F:$F,'Sheet 3'!$B:$B,G$1,'Sheet 3'!$A:$A,$A4) -> 39564 | H4: =SUMIFS('Sheet 3'!$F:$F,'Sheet 3'!$B:$B,H$1,'Sheet 3'!$A:$A,$A4) -> 47975 | I4: =SUMIFS('Sheet 3'!$F:$F,'Sheet 3'!$B:$B,I$1,'Sheet 3'!$A:$A,$A4) -> 16169 | J4: =SUMIFS('Sheet 3'!$F:$F,'Sheet 3'!$B:$B,J$1,'Sheet 3'!$A:$A,$A4) -> 67235 | K4: =SUMIFS('Sheet 3'!$F:$F,'Sheet 3'!$B:$B,K$1,'Sheet 3'!$A:$A,$A4) -> 25200 | L4: 501275
A5: 2021-02-04 | B5: =SUMIFS('Sheet 3'!$F:$F,'Sheet 3'!$B:$B,B$1,'Sheet 3'!$A:$A,$A5) -> 41601 | C5: =SUMIFS('Sheet 3'!$F:$F,'Sheet 3'!$B:$B,C$1,'Sheet 3'!$A:$A,$A5) -> 8820 | D5: =SUMIFS('Sheet 3'!$F:$F,'Sheet 3'!$B:$B,D$1,'Sheet 3'!$A:$A,$A5) -> 129940 | E5: =SUMIFS('Sheet 3'!$F:$F,'Sheet 3'!$B:$B,E$1,'Sheet 3'!$A:$A,$A5) -> 65858 | F5: =SUMIFS('Sheet 3'!$F:$F,'Sheet 3'!$B:$B,F$1,'Sheet 3'!$A:$A,$A5) -> 43080 | G5: =SUMIFS('Sheet 3'!$F:$F,'Sheet 3'!$B:$B,G$1,'Sheet 3'!$A:$A,$A5) -> 154488 | H5: =SUMIFS('Sheet 3'!$F:$F,'Sheet 3'!$B:$B,H$1,'Sheet 3'!$A:$A,$A5) -> 29290 | I5: =SUMIFS('Sheet 3'!$F:$F,'Sheet 3'!$B:$B,I$1,'Sheet 3'!$A:$A,$A5) -> 37582 | J5: =SUMIFS('Sheet 3'!$F:$F,'Sheet 3'!$B:$B,J$1,'Sheet 3'!$A:$A,$A5) -> 122944 | K5: =SUMIFS('Sheet 3'!$F:$F,'Sheet 3'!$B:$B,K$1,'Sheet 3'!$A:$A,$A5) -> 30000 | L5: 663603
A6: 2021-02-05 | B6: =SUMIFS('Sheet 3'!$F:$F,'Sheet 3'!$B:$B,B$1,'Sheet 3'!$A:$A,$A6) -> 59430 | C6: =SUMIFS('Sheet 3'!$F:$F,'Sheet 3'!$B:$B,C$1,'Sheet 3'!$A:$A,$A6) -> 29295 | D6: =SUMIFS('Sheet 3'!$F:$F,'Sheet 3'!$B:$B,D$1,'Sheet 3'!$A:$A,$A6) -> 160200 | E6: =SUMIFS('Sheet 3'!$F:$F,'Sheet 3'!$B:$B,E$1,'Sheet 3'!$A:$A,$A6) -> 174330 | F6: =SUMIFS('Sheet 3'!$F:$F,'Sheet 3'!$B:$B,F$1,'Sheet 3'!$A:$A,$A6) -> 124932 | G6: =SUMIFS('Sheet 3'!$F:$F,'Sheet 3'!$B:$B,G$1,'Sheet 3'!$A:$A,$A6) -> 28260 | H6: =SUMIFS('Sheet 3'!$F:$F,'Sheet 3'!$B:$B,H$1,'Sheet 3'!$A:$A,$A6) -> 6565 | I6: =SUMIFS('Sheet 3'!$F:$F,'Sheet 3'!$B:$B,I$1,'Sheet 3'!$A:$A,$A6) -> 34086 | J6: =SUMIFS('Sheet 3'!$F:$F,'Sheet 3'!$B:$B,J$1,'Sheet 3'!$A:$A,$A6) -> 188258 | K6: =SUMIFS('Sheet 3'!$F:$F,'Sheet 3'!$B:$B,K$1,'Sheet 3'!$A:$A,$A6) -> 8400 | L6: 813756
A7: 合計 | B7: =SUM(B2:B6) -> 219891 | C7: 63315 | D7: 539340 | E7: 524927 | F7: 410696 | G7: 467232 | H7: 142410 | I7: 149891 | J7: 722296 | K7: 250800 | L7: 3490798
A9: id集計より | B9: =SUMIF(Sheet2!$A:$A,'Sheet 4'!B$1,Sheet2!$D:$D) -> 219891 | C9: =SUMIF(Sheet2!$A:$A,'Sheet 4'!C$1,Sheet2!$D:$D) -> 63315 | D9: =SUMIF(Sheet2!$A:$A,'Sheet 4'!D$1,Sheet2!$D:$D) -> 539340 | E9: =SUMIF(Sheet2!$A:$A,'Sheet 4'!E$1,Sheet2!$D:$D) -> 524927 | F9: =SUMIF(Sheet2!$A:$A,'Sheet 4'!F$1,Sheet2!$D:$D) -> 410696 | G9: =SUMIF(Sheet2!$A:$A,'Sheet 4'!G$1,Sheet2!$D:$D) -> 467232 | H9: =SUMIF(Sheet2!$A:$A,'Sheet 4'!H$1,Sheet2!$D:$D) -> 142410 | I9: =SUMIF(Sheet2!$A:$A,'Sheet 4'!I$1,Sheet2!$D:$D) -> 149891 | J9: =SUMIF(Sheet2!$A:$A,'Sheet 4'!J$1,Sheet2!$D:$D) -> 722296 | K9: =SUMIF(Sheet2!$A:$A,'Sheet 4'!K$1,Sheet2!$D:$D) -> 250800 | L9: 3490798

Sheet Sheet5
B1: 名称 | C1: 単価 | D1: 金額
A2: 合計
